Cogmind - Beta 14 @@@ ROGUE MODE // 2024.08.12 @ 06:10:45 Player: Byrnorthil Result: Destroyed by S-43 Plague with Heavy Machine Gun Performance ------------- Evolutions (9) 4500 Regions Visited (24) 4800 Robots Destroyed (280) 1400 Value Destroyed (11726) 11726 Prototype IDs (33) 660 Alien Tech Used (0) 0 Bonus (5773) 5773 TOTAL SCORE: 28859 Bonus ------- High Alert Combat Kills 917 Follower Combat Kills 882 Entered Garrisons 1400 Used RIF Installer 2500 Network Hubs Disabled 200 Friendly Fire -126 Cogmind --------- Core Integrity 0/1600 Matter 295/300 Energy 99/100 System Corruption 4% Temperature Cool (0) Movement Core (50) Location -1/Garrison Parts ------- > --- POWER (2) -------- (None) > --- PROPULSION (6) --- (None) > --- UTILITY (13) ----- Machine Analyzer Hacking Suite Relay Coupler [NC] (16) > --- WEAPON (4) ------- (None) > --- INVENTORY (5) ---- Quantum Shading Machine HERF Cannon Peak State ------------ > --- POWER ------------ Light Antimatter Reactor > --- PROPULSION ------- Q-thruster Q-thruster Q-thruster Q-thruster > --- UTILITY ---------- Advanced Terrain Scanner Advanced Melee Analysis Suite Quantum Capacitor Hacking Suite Improved Hacking Suite Improved Hacking Suite Relay Coupler [NC] Relay Coupler [NC] Relay Coupler [Grunt] Relay Coupler [Brawler] Relay Coupler [Sentry] > --- WEAPON ----------- Linear Accelerator > --- INVENTORY -------- Biometal Medium Treads Q-thruster Advanced Force Field HERF Cannon [Rating: 99] Favorites ----------- Power Ion Engine Engine Ion Engine Power Core Micro Nuclear Core Reactor Light Quantum Reactor Propulsion Light Treads Treads Light Treads Leg Carbon-fiber Leg Wheel Armored Huge Wheel Flight Unit Q-thruster Utility High-capacity Storage Unit Device Improved Heat Sink Storage High-capacity Storage Unit Processor Machine Analyzer Hackware Relay Coupler [Grunt] Protection Improved Medium Armor Plating Weapon Gatling Laser Energy Gun Gatling Laser Energy Cannon Heavy Plasma Cannon Ballistic Gun Autogun Ballistic Cannon Mini Assault Cannon Launcher Heavy Rocket Launcher Special Weapon Remote Datajack Slashing Weapon Katana Special Melee Weapon Improved Datajack Build | -11 -10 -10 -8 -8 -8 -8 -7 -7 -7 -7 -6 -6 -6 -6 -6 -5 -5 -5 -4 -4 -3 -2 -1 -1 ------- Run | Yrd Mat Sub Mat Gar Mat Gar Fac Gar Fac Gar Fac Ext Cet Arc Hub Fac Gar Fac Fac Gar Res Res Acc Gar Slots Evolved 18 | . . . 4 . . . 2 . . . 2 . . . . 2 . . 2 . 2 2 2 . Power 1 | . . . . . . . . . . . . . . . . . . . . . . . 1 . Propulsion 4 | . . . 1 . . . . . . . . . . . . . . . 1 . . 2 . . Utility 11 | . . . 1 . . . 2 . . . 2 . . . . 2 . . 1 . 2 . 1 . Weapon 2 | . . . 2 . . . . . . . . . . . . . . . . . . . . . Parts Attached 316 | 8 9 24 11 5 4 11 27 6 12 17 23 14 9 8 8 8 22 40 2 17 17 7 7 . Power 30 | 1 1 3 2 . . 1 1 . . . 2 . . 1 2 1 3 5 . 3 1 1 2 . Engine 15 | 1 1 3 2 . . 1 1 . . . 2 . . . 1 1 . 2 . . . . . . Core 6 | . . . . . . . . . . . . . . 1 1 . 1 2 . 1 . . . . Reactor 9 | . . . . . . . . . . . . . . . . . 2 1 . 2 1 1 2 . Propulsion 64 | 3 2 3 3 . 2 2 4 1 2 5 6 1 3 . 1 . 5 8 1 1 7 . 4 . Treads 36 | 1 2 3 2 . 2 2 4 1 2 4 . 1 2 . 1 . 4 1 . 1 1 . 2 . Leg 13 | 2 . . . . . . . . . 1 3 . . . . . 1 3 . . 1 . 2 . Wheel 10 | . . . 1 . . . . . . . 3 . 1 . . . . 4 1 . . . . . Hover . | . . . . . . . . . . . . . . . . . . . . . . . . . Flight 5 | . . . . . . . . . . . . . . . . . . . . . 5 . . . Utility 110 | 2 1 13 1 1 2 4 10 . 3 6 7 8 2 3 3 4 6 12 1 11 5 4 1 . Device 45 | 1 . 6 1 . 1 2 2 . 2 . 4 1 1 1 2 . 3 6 . 5 4 2 1 . Storage 6 | 1 1 . . . . . 2 . . . . 1 . . . . . . . . . 1 . . Processor 6 | . . . . . . . 1 . . . . . . . . 2 . 1 . . 1 1 . . Hackware 19 | . . . . . . . 2 . . 2 2 2 . . . 2 2 2 . 5 . . . . Protection 34 | . . 7 . 1 1 2 3 . 1 4 1 4 1 2 1 . 1 3 1 1 . . . . Artifact . | . . . . . . . . . . . . . . . . . . . . . . . . . Weapon 112 | 2 5 5 5 4 . 4 12 5 7 6 8 5 4 4 2 3 8 15 . 2 4 2 . . Energy Gun 30 | . . . 1 3 . 4 5 2 3 2 2 1 1 . 2 . 1 3 . . . . . . Energy Cannon 15 | . . 1 . . . . 1 1 . 1 . . 1 1 . . . 5 . 1 2 1 . . Ballistic Gun 26 | 2 3 2 2 . . . 2 . 3 1 2 1 . . . 2 2 4 . . . . . . Ballistic Cannon 10 | . . . 1 . . . . . . 1 1 1 1 2 . . . 1 . . 2 . . . Launcher 10 | . . 1 1 . . . . 1 . . 1 . 1 . . 1 3 . . 1 . . . . Special Weapon 19 | . 2 1 . . . . 3 1 1 1 2 2 . 1 . . 2 2 . . . 1 . . Impact Weapon . | . . . . . . . . . . . . . . . . . . . . . . . . . Slashing Weapon 1 | . . . . 1 . . . . . . . . . . . . . . . . . . . . Piercing Weapon . | . . . . . . . . . . . . . . . . . . . . . . . . . Special Melee Weapon 1 | . . . . . . . 1 . . . . . . . . . . . . . . . . . Unidentified Prototypes 12 | . . . 1 . . 1 2 1 . 1 . 1 1 . . 1 1 1 . . . 1 . . Corrupted Parts 3 | . . . 1 . . . . . . 1 . . . . . . 1 . . . . . . . System Corruption 9 | . . . 2 . . . . . . 1 . . . . . . 6 . . . . . . . Parts Lost 137 | . . 3 4 1 1 1 4 2 6 12 9 2 4 3 7 2 5 26 . 25 7 5 8 . Power 17 | . . . 2 . . . . . . . 2 . . 2 1 . . 3 . 4 1 . 2 . Propulsion 34 | . . 3 1 . 1 . 2 . 2 3 2 . 2 . 1 . 2 5 . 3 3 2 2 . Utility 46 | . . . . . . 1 . 1 2 4 2 1 2 1 3 1 . 7 . 12 3 2 4 . Weapon 40 | . . . 1 1 . . 2 1 2 5 3 1 . . 2 1 3 11 . 6 . 1 . . Highest Loss Streak 15 | . . 1 2 1 1 1 2 2 3 6 4 2 4 2 3 2 2 6 . 15 7 3 7 . To Critical Strikes 2 | . . 1 . . . . . . . . . . . . . . . . . 1 . . . . Average Slot Usage (%) 89 | . 100 87 91 91 91 96 95 97 93 96 96 99 79 87 88 85 88 90 86 63 61 40 33 12 Engine 7 | . 14 17 13 9 9 9 7 7 7 7 6 6 6 . 2 3 1 . . . . . . . Treads 15 | . 25 26 20 27 26 26 21 23 22 21 6 5 7 6 6 5 7 3 . 1 . . 3 . Leg 1 | . 2 . . . . . . . . 1 9 . . . . . 1 3 . . . . 4 . Wheel 2 | . . . 2 . . . . . . . 4 13 6 6 6 5 2 4 10 4 . . . . Device 7 | . 14 8 8 1 2 7 5 7 9 4 6 6 5 11 12 11 11 9 15 7 5 5 3 . Storage 7 | . 14 12 8 9 9 9 7 7 7 7 6 6 6 6 6 5 5 5 5 4 . . . . Hackware 11 | . . . . . . . 12 15 12 10 17 23 20 14 13 14 20 26 21 19 37 21 16 8 Protection 6 | . . 3 8 9 9 7 8 6 2 14 11 8 12 12 9 5 5 4 2 2 . . . . Energy Gun 7 | . . . 6 10 18 32 19 17 14 6 10 7 2 . 11 4 . 3 5 2 . . . . Energy Cannon 3 | . . 7 5 . . . 2 5 2 . . . . 6 6 5 5 4 . 1 . . . . Ballistic Gun 6 | . 25 7 11 7 . . 2 . 7 10 7 10 3 . . 2 5 4 5 2 . . . . Ballistic Cannon 2 | . . . 3 9 9 . . . . 5 2 2 1 13 6 5 5 5 10 5 2 . . . Special Weapon 1 | . 2 . . . . . 3 5 3 3 5 4 . 6 . . 1 . . . . 2 . . Peak Build Rating 99 | 7 10 26 33 30 29 37 48 49 48 48 59 57 57 65 72 76 82 81 85 87 99 56 76 8 Average Rating 43 | 5 9 18 27 25 27 29 41 46 44 44 52 53 48 61 66 71 76 75 82 61 69 47 42 8 On Entrance 41 | . 7 9 26 21 29 27 37 48 39 47 47 50 56 45 63 67 72 78 77 85 26 49 36 8 Naked Turns . | . . . . . . . . . . . . . . . . . . . . . . . . . Heaviest Build 112 | 15 22 33 40 50 48 51 79 82 73 78 79 80 85 88 91 96 112 109 80 93 30 27 20 . Greatest Support 74 | 20 40 40 60 60 60 60 68 68 68 68 68 30 28 28 28 28 74 74 56 56 32 28 23 3 Greatest Overweight (x) 23 | 1 1 . . . . . 2 1 1 2 6 3 8 3 3 3 4 10 1 23 . . . . Average Overweight (x) . | . . . . . . . . . . 1 1 2 3 2 2 3 2 2 1 2 . . . . Largest Inventory Capacity 20 | 8 10 10 10 10 10 10 20 20 20 20 20 20 20 20 20 20 20 20 20 20 5 5 5 5 Average Capacity 14 | 6 9 10 10 10 10 10 11 20 20 20 20 20 20 20 20 20 20 20 20 18 5 5 5 5 Most Carried 20 | 5 10 10 10 10 10 10 15 16 20 18 20 20 20 20 20 20 20 20 20 20 5 5 4 2 Average Carried 13 | 2 9 9 8 9 8 9 10 15 18 15 17 19 19 15 17 18 18 18 19 13 4 3 2 2 Final Capacity 20 | 8 10 10 10 10 10 10 20 20 20 20 20 20 20 20 20 20 20 20 20 5 5 5 5 5 Final Carried 20 | 5 10 9 10 10 10 10 15 16 18 17 20 20 20 17 19 19 20 20 20 2 5 4 2 2 Class Distribution -------------------- 28% | Bothacker-Tank 24% | Mutant 19% | Scavenger-Tank 6% | Botlord-Tank 5% | Hacker-Tank 3% | Bothacker-Gunner Dominant Class ---------------- Mutant | -10/Materials Mutant | -10/Subcaves Scavenger-Tank | -8/Materials Scavenger-Tank | -8/Garrison Scavenger-Tank | -8/Materials Scavenger-Tank | -8/Garrison Bothacker-Tank | -7/Factory Bothacker-Tank | -7/Garrison Bothacker-Gunner | -7/Factory Bothacker-Tank | -7/Garrison Bothacker-Tank | -6/Factory Bothacker-Tank | -6/Extension Bothacker-Mutant | -6/Cetus Scavenger-Tank | -6/Archives Scavenger-Tank | -6/Hub_04(d) Scavenger-Gunner | -5/Factory Botlord-Tank | -5/Garrison Botlord-Tank | -5/Factory Botlord-Tank | -4/Factory Hacker-Tank | -4/Garrison Hacker-Sprinter | -3/Research Bothacker-Mutant | -2/Research Mutant | -1/Access Mutant | -1/Garrison Resources | -11 -10 -10 -8 -8 -8 -8 -7 -7 -7 -7 -6 -6 -6 -6 -6 -5 -5 -5 -4 -4 -3 -2 -1 -1 ----------- Run | Yrd Mat Sub Mat Gar Mat Gar Fac Gar Fac Gar Fac Ext Cet Arc Hub Fac Gar Fac Fac Gar Res Res Acc Gar Matter Collected 8339 | 253 413 383 303 343 . 130 640 79 268 201 490 760 227 299 209 200 777 1390 52 384 300 90 148 . Remotely 971 | . . . . . . . . . . . . . . . . . . 680 52 239 . . . . Salvage Created 9659 | 29 466 720 669 453 39 432 1290 363 730 279 524 535 78 201 363 403 345 1181 . 533 . . 26 . Parts 483 | 3 42 43 47 27 . 34 51 13 39 14 20 21 3 4 12 10 20 57 . 22 . . 1 . Haulers Intercepted 6 | . 2 . 1 . . . 2 . . . . . . . 1 . . . . . . . . . Recyclers Shooed 7 | . 1 . . . . . 2 . . . . . . . . 1 . 2 . . . . 1 . Parts Field Recycled . | . . . . . . . . . . . . . . . . . . . . . . . . . Retrieved Matter . | . . . . . . . . . . . . . . . . . . . . . . . . . Parts Self-Destructed 23 | . . 23 . . . . . . . . . . . . . . . . . . . . . . Prevented . | . . . . . . . . . . . . . . . . . . . . . . . . . Kills | -11 -10 -10 -8 -8 -8 -8 -7 -7 -7 -7 -6 -6 -6 -6 -6 -5 -5 -5 -4 -4 -3 -2 -1 -1 ------- Run | Yrd Mat Sub Mat Gar Mat Gar Fac Gar Fac Gar Fac Ext Cet Arc Hub Fac Gar Fac Fac Gar Res Res Acc Gar Combat Hostiles Destroyed 238 | . 11 19 17 19 2 18 26 11 15 7 16 9 2 4 5 8 14 21 . 14 . . . . Guns 115 | . 11 3 1 5 1 18 17 5 14 3 15 7 1 . 1 1 3 8 . 1 . . . . Cannons 72 | . . 11 8 4 1 . 8 3 1 3 1 2 1 3 2 4 4 9 . 7 . . . . AOE 42 | . . 2 7 10 . . . 3 . 1 . . . . . 3 7 3 . 6 . . . . Classes Destroyed 17 | 1 4 1 5 1 . 1 1 1 . . . 1 . . . . 1 . . . . . . . Worker 7 | . . . 1 . . . 1 . . . . . . . 2 . . 2 . . . . 1 . Builder 6 | . . . 1 . . . 3 . 1 . . . . . . . . 1 . . . . . . Tunneler 3 | 1 . . 1 . . . . . . . . . . . . . . 1 . . . . . . Hauler 6 | . 2 . 1 . . . 2 . . . . . . . 1 . . . . . . . . . Recycler 6 | . . . . . . . 2 . 2 . . . . . . . . 2 . . . . . . Operator 3 | . . . . . . . . . . . . 1 . . 1 . . 1 . . . . . . Watcher 11 | . 2 . 3 . . . 2 . . . . 2 1 . 1 . . . . . . . . . Swarmer 71 | . 6 3 6 7 . 10 3 4 8 . 9 . . . . . 8 3 . 4 . . . . Cutter 6 | . . . 3 . . 3 . . . . . . . . . . . . . . . . . . Grunt 70 | . 5 2 4 10 . . 14 6 2 . 5 5 . . 1 7 1 3 . 5 . . . . Brawler 4 | . . . . . . . . 1 . 1 1 . . . . . . 1 . . . . . . Duelist 5 | . . . . 1 . . . . . . 1 . . . . 1 2 . . . . . . . Sentry 30 | . . . 3 1 1 4 5 . 2 2 . 2 . 4 2 . . 2 . 2 . . . . Hunter 16 | . . . 1 . 1 . . . 1 1 . . . . . . 2 9 . 1 . . . . Programmer 17 | . . . . . . 1 4 . 2 3 . 1 . . 2 . . 3 . 1 . . . . Behemoth 2 | . . . . . . . . . . . . . . . . . 1 . . 1 . . . . Cetus Guard 2 | . . . . . . . . . . . . . 2 . . . . . . . . . . . Subdweller 14 | . . 14 . . . . . . . . . . . . . . . . . . . . . . Thug 1 | . . . . . . . . . . . . 1 . . . . . . . . . . . . Best Kill Streak 10 | 1 3 3 6 10 2 7 7 8 4 3 4 3 2 2 2 4 7 4 . 5 . . 1 . Combat Bots Only 10 | . 3 3 6 10 2 7 3 8 3 3 4 2 1 2 2 4 7 3 . 5 . . . . Max Kills in Single Turn 4 | 1 2 1 4 3 1 3 4 3 1 1 2 2 2 1 2 3 2 2 . 4 . . 1 . Gunslinging 1 | . 1 . . . . 1 . . . . 1 . . . . . . . . . . . . . Exploded 4 | . . 1 4 3 . . . 3 . 1 . . . . . 3 2 2 . 4 . . . . Melee . | . . . . . . . . . . . . . . . . . . . . . . . . . Uniques/NPCs Destroyed . | . . . . . . . . . . . . . . . . . . . . . . . . . Combat | -11 -10 -10 -8 -8 -8 -8 -7 -7 -7 -7 -6 -6 -6 -6 -6 -5 -5 -5 -4 -4 -3 -2 -1 -1 -------- Run | Yrd Mat Sub Mat Gar Mat Gar Fac Gar Fac Gar Fac Ext Cet Arc Hub Fac Gar Fac Fac Gar Res Res Acc Gar Hostile Shots Fired 2019 | . 38 68 36 38 23 40 228 18 143 87 103 102 18 43 143 37 103 207 . 228 36 56 216 8 Missed 678 | . 13 12 13 13 6 10 91 7 46 25 35 51 5 10 54 10 22 36 . 73 18 30 95 3 Damage Taken 23441 | . 228 1241 362 395 275 431 1765 284 1227 965 1154 528 384 801 875 542 1726 3465 . 2862 515 595 2706 115 Core 4233 | . 36 177 48 78 15 16 172 15 97 100 52 56 23 98 33 59 350 435 . 460 72 236 1490 115 Absorbed by Shields 412 | . . . . . . . . . . . . 260 24 . . . . . . 128 . . . . Ignored by Resistances 7 | . . . . . . . . . . . . . . . . . 7 . . . . . . . Core Remaining (%) 61 | 100 . 14 . . . 71 . . . 45 . . . . 69 . . 15 . 60 94 83 . . Volleys Fired 742 | 1 57 71 36 25 6 28 86 17 35 23 44 66 8 21 25 14 46 77 . 34 19 3 . . Largest 4 | 2 2 2 4 4 3 4 4 4 4 4 4 4 4 3 4 4 4 4 . 4 1 1 . . Hottest 303 | 40 123 100 132 284 204 270 258 303 213 186 225 220 190 186 298 233 233 272 . 228 66 10 . . Shots Fired 1781 | 2 94 85 112 62 16 70 220 39 120 55 119 160 26 51 77 40 88 224 . 99 19 3 . . Gun 1077 | 2 74 28 76 35 10 70 166 29 112 38 100 115 14 . 29 17 29 93 . 40 . . . . Cannon 558 | . . 53 33 18 6 . 29 8 7 13 10 22 4 49 48 20 43 122 . 54 19 . . . Launcher 43 | . . 3 3 9 . . . 1 . . . . 7 . . 3 10 2 . 5 . . . . Special 103 | . 20 1 . . . . 25 1 1 4 9 23 1 2 . . 6 7 . . . 3 . . Kinetic 794 | 2 74 28 52 40 6 . 29 . 35 37 45 90 11 30 26 23 43 135 . 69 19 . . . Thermal 751 | . 20 54 24 13 10 70 166 26 37 13 65 47 7 19 51 14 29 61 . 25 . . . . Explosive 43 | . . 3 3 9 . . . 1 . . . . 7 . . 3 10 2 . 5 . . . . Electromagnetic 111 | . . . 33 . . . . 11 47 1 . . . . . . . 19 . . . . . . Robot Hit Streak 24 | 2 9 24 11 14 12 11 21 8 9 8 12 9 8 16 11 4 13 16 . 10 . 5 . . Robot Miss Streak 10 | . 4 5 5 7 4 7 7 8 8 5 6 10 2 5 3 4 4 3 . 5 . . . . Penetration Max 1 | . . . . . . . . . 1 1 . . . . . . . 1 . 1 . . . . Secondary Targets 17 | . 2 . . . . 6 1 . 4 1 3 . . . . . . . . . . . . . Max Gunslinging Chain 2 | . 1 . . . . 2 1 . 1 1 1 . . . . . . . . . . . . . Shots Hit Robots 1063 | 2 37 61 56 42 14 38 158 27 72 40 73 85 14 35 49 19 46 130 . 62 . 3 . . Core Hits 645 | 1 18 21 37 44 8 30 92 35 58 27 37 44 21 10 20 21 24 55 . 40 . . 2 . Critical Kills 8 | . . 3 1 . . . 1 . . . 1 . . . . . . 1 . 1 . . . . Critical Parts Destroyed 5 | . 1 . . . . . . . . . . 1 . . . . . 2 . 1 . . . . Critical Strikes 37 | . 1 3 4 . . 2 3 . 1 3 2 4 . . . . 1 11 . 2 . . . . Burn 7 | . . . . . . 2 2 . . . . 1 . . . . . 2 . . . . . . Meltdown 5 | . . 3 1 . . . . . . . . . . . . . . 1 . . . . . . Destroy 8 | . 1 . . . . . 1 . . . 1 1 . . . . . 2 . 2 . . . . Blast 13 | . . . . . . . . . . 3 1 2 . . . . 1 6 . . . . . . Corrupt 4 | . . . 3 . . . . . 1 . . . . . . . . . . . . . . . Melee Attacks . | . . . . . . . . . . . . . . . . . . . . . . . . . Impact . | . . . . . . . . . . . . . . . . . . . . . . . . . Slashing . | . . . . . . . . . . . . . . . . . . . . . . . . . Piercing . | . . . . . . . . . . . . . . . . . . . . . . . . . Sneak Attacks . | . . . . . . . . . . . . . . . . . . . . . . . . . Combat Hostiles . | . . . . . . . . . . . . . . . . . . . . . . . . . Follow-up Attacks . | . . . . . . . . . . . . . . . . . . . . . . . . . Damage Inflicted 29691 | 26 574 2163 1785 1437 293 943 3847 780 1344 904 1236 1577 685 984 1606 979 2025 4054 . 2397 . . 52 . Guns 13924 | 26 569 389 544 368 192 943 2766 454 1249 658 1058 1296 252 . 713 219 388 1157 . 683 . . . . Cannons 10056 | . . 1545 904 231 101 . 459 99 35 246 178 281 79 984 756 266 707 2212 . 973 . . . . Explosions 5604 | . . 229 337 838 . . 576 227 56 . . . 354 . 137 494 930 685 . 741 . . . . Melee . | . . . . . . . . . . . . . . . . . . . . . . . . . Ramming 107 | . 5 . . . . . 46 . 4 . . . . . . . . . . . . . 52 . Kinetic 9857 | 26 569 389 399 380 101 . 421 . 346 622 490 788 165 535 364 288 608 2084 . 1282 . . . . Thermal 13998 | . . 1545 798 219 192 943 3380 448 583 278 746 789 166 449 1105 197 487 1299 . 374 . . . . Explosive 4463 | . . 229 269 838 . . . 227 . . . . 354 . . 494 930 381 . 741 . . . . Electromagnetic 1266 | . . . 319 . . . . 105 411 4 . . . . 137 . . 290 . . . . . . Impact . | . . . . . . . . . . . . . . . . . . . . . . . . . Slashing . | . . . . . . . . . . . . . . . . . . . . . . . . . Piercing . | . . . . . . . . . . . . . . . . . . . . . . . . . Highest Corruption 14 | . . . 2 3 3 4 3 3 4 8 . 2 2 2 5 . 6 14 . 2 10 . 4 4 Average Corruption 3 | . . . 2 2 3 3 2 3 3 7 . 1 2 2 3 . 6 8 . 1 3 . 2 4 Corruption Purged . | . . . . . . . . . . . . . . . . . . . . . . . . . Corruption Blocked . | . . . . . . . . . . . . . . . . . . . . . . . . . Effects 151 | . . . 3 8 2 7 8 6 14 15 . 16 5 3 13 . . 42 . 5 2 . 1 1 Message Errors 38 | . . . . 3 . 1 2 4 . 3 . 3 2 1 2 . . 14 . 1 1 . 1 . Matter Fused 29 | . . . 1 1 . 4 . . 4 1 . 4 . . 3 . . 9 . 2 . . . . Heat Flow Errors 19 | . . . . 1 1 1 4 . 1 3 . 4 . . 1 . . 2 . 1 . . . . Energy Discharges 14 | . . . . . . . 1 . 3 1 . 3 1 . . . . 4 . 1 . . . . Parts Rejected 6 | . . . . . 1 . . . 1 1 . 1 1 . . . . 1 . . . . . . Parts Fused 2 | . . . . . . . . . . . . . . 1 . . . . . . 1 . . . Data Loss (minor) 19 | . . . 1 3 . . 1 1 2 1 . . . 1 4 . . 5 . . . . . . Data Loss (major) 5 | . . . . . . . . . 1 2 . . . . . . . 1 . . . . . 1 Misfires 8 | . . . 1 . . . . . 2 1 . . 1 . 2 . . 1 . . . . . . Alerts 2 | . . . . . . . . . . 1 . . . . 1 . . . . . . . . . Weapon Failures 9 | . . . . . . 1 . 1 . 1 . 1 . . . . . 5 . . . . . . Overload Shots . | . . . . . . . . . . . . . . . . . . . . . . . . . Overflow Damage 439 | . . 9 64 3 . . 118 10 17 14 5 9 . . 54 . 34 102 . . . . . . Projectiles 181 | . . 9 64 . . . 13 . 10 14 5 9 . . 14 . . 43 . . . . . . Explosions 253 | . . . . 3 . . 100 10 7 . . . . . 40 . 34 59 . . . . . . Melee 5 | . . . . . . . 5 . . . . . . . . . . . . . . . . . Knockbacks 28 | . . . . 5 4 . . . . . 1 2 . . 2 . 6 5 . 3 . . . . Impact . | . . . . . . . . . . . . . . . . . . . . . . . . . Kinetic 28 | . . . . 5 4 . . . . . 1 2 . . 2 . 6 5 . 3 . . . . Secondary . | . . . . . . . . . . . . . . . . . . . . . . . . . Self-Inflicted Damage 785 | . . . 24 42 . . 164 40 75 . . . . . 106 . 103 206 . . . . 25 . Shots 18 | . . . 1 2 . . 2 1 2 . . . . . 1 . 5 4 . . . . . . Rammed 16 | . 3 . . . . . 3 . 1 . . . . . 1 . . . . . . . 8 . Targets Rammed 18 | . 3 . . . . . 5 . 1 . . . . . 1 . . . . . . . 8 . Kicked . | . . . . . . . . . . . . . . . . . . . . . . . . . Crushed 2 | . . . . . . . 2 . . . . . . . . . . . . . . . . . Highest Temperature 680 | . 90 19 392 416 463 495 524 321 402 311 397 228 389 455 324 135 680 201 . 478 168 . . . Average Temperature 125 | . 24 6 157 149 240 164 135 104 97 112 147 62 184 198 113 71 304 71 . 113 75 . . . Received Heat Transfer 3219 | . 60 120 63 207 45 54 372 81 117 90 279 165 36 126 192 256 33 255 . 476 9 45 129 9 Effects 48 | . . . 7 3 4 3 12 . 1 . 1 . 1 1 3 . 9 . . 3 . . . . Shutdowns 13 | . . . 1 1 2 1 2 . . . 1 . 1 1 . . 2 . . 1 . . . . Energy Bleed 9 | . . . 2 1 2 1 3 . . . . . . . . . . . . . . . . . Interference 16 | . . . 4 1 . . 5 . . . . . . . 3 . 3 . . . . . . . Matter Decay 4 | . . . . . . 1 1 . 1 . . . . . . . 1 . . . . . . . Short Circuit 1 | . . . . . . . . . . . . . . . . . . . . 1 . . . . Damage (minor) 1 | . . . . . . . . . . . . . . . . . . . . 1 . . . . Damage (major) 3 | . . . . . . . 1 . . . . . . . . . 2 . . . . . . . Damage (core) 1 | . . . . . . . . . . . . . . . . . 1 . . . . . . . Siege Activations . | . . . . . . . . . . . . . . . . . . . . . . . . . Robots Corrupted 1 | . . . . . . . 1 . . . . . . . . . . . . . . . . . Combat Hostiles 1 | . . . . . . . 1 . . . . . . . . . . . . . . . . . Parts Fried 8 | . . . 4 . . . . . 3 . . 1 . . . . . . . . . . . . Impact Corruptions 2 | . . . . . . . 2 . . . . . . . . . . . . . . . . . Robots Melted 8 | . . 3 1 . . . . . . . . . . 1 2 . . 1 . . . . . . Combat Hostiles 8 | . . 3 1 . . . . . . . . . . 1 2 . . 1 . . . . . . Parts Melted 40 | . . 4 . . . 2 19 . . . 2 1 . . 6 1 1 3 . 1 . . . . Heat Transferred 19364 | . . . 100 500 400 1786 5645 440 550 275 1580 1709 375 700 1756 350 724 1979 . 495 . . . . Parts Sabotaged . | . . . . . . . . . . . . . . . . . . . . . . . . . Parts Stolen . | . . . . . . . . . . . . . . . . . . . . . . . . . Parts Stripped . | . . . . . . . . . . . . . . . . . . . . . . . . . Power Chain Reactions 4 | . . . 1 . . . . . 1 . . . . . . . . 2 . . . . . . Alert | -11 -10 -10 -8 -8 -8 -8 -7 -7 -7 -7 -6 -6 -6 -6 -6 -5 -5 -5 -4 -4 -3 -2 -1 -1 ------- Run | Yrd Mat Sub Mat Gar Mat Gar Fac Gar Fac Gar Fac Ext Cet Arc Hub Fac Gar Fac Fac Gar Res Res Acc Gar Peak Influence 785 | 5 277 . 431 773 376 785 547 679 633 539 508 484 184 176 547 402 618 475 116 281 305 260 395 331 Initial 443 | . 3 . 37 253 376 196 411 375 356 443 282 238 136 67 61 169 142 324 116 81 146 90 146 316 Average 337 | 1 110 . 263 620 294 511 375 540 479 479 386 291 147 154 303 293 429 272 116 165 231 166 246 328 Maximum Alert Level 3 | . 1 . 2 3 1 3 2 2 2 2 2 2 . . 2 2 2 2 . 1 1 1 1 1 Low Security (%) 26 | 100 80 . 27 . . 18 6 . . . . 16 100 100 35 9 8 34 100 88 26 61 53 . Level 1 38 | . 19 . 56 14 100 14 44 29 13 . 55 72 . . 34 80 39 54 . 11 73 38 46 100 Level 2 31 | . . . 16 54 . 30 48 70 86 100 44 11 . . 29 10 52 11 . . . . . . Level 3 3 | . . . . 31 . 36 . . . . . . . . . . . . . . . . . . Level 4 . | . . . . . . . . . . . . . . . . . . . . . . . . . Level 5 . | . . . . . . . . . . . . . . . . . . . . . . . . . High Security . | . . . . . . . . . . . . . . . . . . . . . . . . . Max Security . | . . . . . . . . . . . . . . . . . . . . . . . . . Squads Dispatched 39 | . 3 . 5 . 1 . 7 . 5 . 1 3 . . 4 2 . 4 . . 2 1 1 . Investigation 8 | . 1 . . . 1 . 3 . . . . 2 . . . . . 1 . . . . . . Extermination 7 | . . . . . . . 3 . 1 . . . . . 1 . . 2 . . . . . . Reinforcement 13 | . 2 . 3 . . . 1 . 1 . . 1 . . . . . 1 . . 2 1 1 . Assault 1 | . . . . . . . . . . . 1 . . . . . . . . . . . . . Garrison 10 | . . . 2 . . . . . 3 . . . . . 3 2 . . . . . . . . Intercept . | . . . . . . . . . . . . . . . . . . . . . . . . . Searches Triggered . | . . . . . . . . . . . . . . . . . . . . . . . . . Construction Impeded 2 | . . . . . . . . . 1 . . . . . . . . 1 . . . . . . Haulers Reinforced . | . . . . . . . . . . . . . . . . . . . . . . . . . Active Scanning Responses . | . . . . . . . . . . . . . . . . . . . . . . . . . Cargo Convoy Interrupts . | . . . . . . . . . . . . . . . . . . . . . . . . . Stealth | -11 -10 -10 -8 -8 -8 -8 -7 -7 -7 -7 -6 -6 -6 -6 -6 -5 -5 -5 -4 -4 -3 -2 -1 -1 --------- Run | Yrd Mat Sub Mat Gar Mat Gar Fac Gar Fac Gar Fac Ext Cet Arc Hub Fac Gar Fac Fac Gar Res Res Acc Gar Distress Signals 15 | . 2 . 3 . . . 3 . . . . 2 1 . 1 . . 1 . . . . 2 . Communications Jammed . | . . . . . . . . . . . . . . . . . . . . . . . . . Distress Signals . | . . . . . . . . . . . . . . . . . . . . . . . . . Times Spotted 409 | . 16 20 23 19 4 18 42 11 16 10 28 30 5 4 10 11 21 33 . 18 11 17 29 13 Peak Tracking Total 16 | . 3 3 6 4 2 6 5 5 4 7 6 6 5 2 4 5 6 6 . 6 6 6 16 14 Tactical Retreats 23 | . 1 . . . . . 3 1 1 2 2 3 . . . . 1 . . . 3 2 4 . Traps | -11 -10 -10 -8 -8 -8 -8 -7 -7 -7 -7 -6 -6 -6 -6 -6 -5 -5 -5 -4 -4 -3 -2 -1 -1 ------- Run | Yrd Mat Sub Mat Gar Mat Gar Fac Gar Fac Gar Fac Ext Cet Arc Hub Fac Gar Fac Fac Gar Res Res Acc Gar Traps Triggered 24 | . 1 3 . 1 . 1 . 1 . 2 . 3 . . . . 6 1 . 3 1 . 1 . Indirectly . | . . . . . . . . . . . . . . . . . . . . . . . . . Trap Hack Attempts . | . . . . . . . . . . . . . . . . . . . . . . . . . Triggered . | . . . . . . . . . . . . . . . . . . . . . . . . . Disarmed 3 | . . . . . . . . . . . . . . . . . . 3 . . . . . . Reprogrammed . | . . . . . . . . . . . . . . . . . . . . . . . . . Reused . | . . . . . . . . . . . . . . . . . . . . . . . . . Traps Extracted . | . . . . . . . . . . . . . . . . . . . . . . . . . Installed . | . . . . . . . . . . . . . . . . . . . . . . . . . Triggered 1 | . . . . . . . . . . . . 1 . . . . . . . . . . . . Machines | -11 -10 -10 -8 -8 -8 -8 -7 -7 -7 -7 -6 -6 -6 -6 -6 -5 -5 -5 -4 -4 -3 -2 -1 -1 ---------- Run | Yrd Mat Sub Mat Gar Mat Gar Fac Gar Fac Gar Fac Ext Cet Arc Hub Fac Gar Fac Fac Gar Res Res Acc Gar Machines Disabled 47 | . 1 1 . . . 2 7 3 4 . . 2 2 2 13 1 3 6 . . . . . . Max in Single Turn 9 | . 1 1 . . . 1 4 1 3 . . 1 1 1 9 1 1 4 . . . . . . Garrison Relay 5 | . . . . . . 2 . . . . . . . . . . 2 . . 1 . . . . Network Hub 1 | . . . . . . . . . . . . . . . 1 . . . . . . . . . Energy Cycler 1 | . . . . . . . . . . . . . . . . . . . . . . . 1 . Machines Repaired . | . . . . . . . . . . . . . . . . . . . . . . . . . Machines Dismantled . | . . . . . . . . . . . . . . . . . . . . . . . . . Machines Sabotaged . | . . . . . . . . . . . . . . . . . . . . . . . . . Overloaded Fab Kills . | . . . . . . . . . . . . . . . . . . . . . . . . . Hacking | -11 -10 -10 -8 -8 -8 -8 -7 -7 -7 -7 -6 -6 -6 -6 -6 -5 -5 -5 -4 -4 -3 -2 -1 -1 --------- Run | Yrd Mat Sub Mat Gar Mat Gar Fac Gar Fac Gar Fac Ext Cet Arc Hub Fac Gar Fac Fac Gar Res Res Acc Gar Machines Accessed 62 | . 3 2 4 2 2 1 8 . 2 1 4 10 3 1 2 2 1 6 1 1 2 2 2 . Terminals 47 | . 3 . 3 2 1 1 5 . 1 1 2 10 3 . 2 . 1 6 . 1 2 2 1 . Fabricators 2 | . . . . . . . 1 . . . . . . . . 1 . . . . . . . . Repair Stations 2 | . . . . . . . 1 . . . 1 . . . . . . . . . . . . . Recycling Units . | . . . . . . . . . . . . . . . . . . . . . . . . . Scanalyzers 1 | . . . . . . . . . . . 1 . . . . . . . . . . . . . Garrison Access 7 | . . . 1 . 1 . 1 . 1 . . . . . . 1 . . 1 . . . 1 . Total Hacks 171 | . 13 6 10 5 9 2 20 . 6 1 8 24 5 3 6 5 1 28 1 2 7 7 2 . Successful 79 | . 6 6 5 . 6 1 9 . 4 1 3 7 2 3 2 3 1 9 1 1 3 4 2 . Failed 91 | . 7 . 5 5 3 1 11 . 2 . 5 17 3 . 4 2 . 18 . 1 4 3 . . Catastrophic 14 | . . . . 1 . 1 4 . . . . 2 2 . . 1 . 3 . . . . . . Database Lockouts 1 | . . . . . . . . . . . . . . . . . . 1 . . . . . . Manual 69 | . 13 . 7 . 7 . 8 . 2 . 2 9 1 . 3 . . 14 . . . 3 . . Terminals 139 | . 13 . 9 5 8 2 12 . 5 1 3 24 5 . 6 . 1 28 . 2 7 7 1 . Fabricators 7 | . . . . . . . 4 . . . . . . . . 3 . . . . . . . . Repair Stations 5 | . . . . . . . 3 . . . 2 . . . . . . . . . . . . . Recycling Units . | . . . . . . . . . . . . . . . . . . . . . . . . . Scanalyzers 3 | . . . . . . . . . . . 3 . . . . . . . . . . . . . Garrison Access 8 | . . . 1 . 1 . 1 . 1 . . . . . . 2 . . 1 . . . 1 . Terminal Hacks 48 | . 2 6 1 . 4 1 3 . 1 1 1 5 2 3 1 . 1 7 . 1 3 4 1 . Record 13 | . . 5 . . 1 . . . . . . . 1 3 . . . . . . 1 2 . . Part Schematic 2 | . . . . . . . 1 . . . . . . . . . . 1 . . . . . . Robot Analysis 3 | . 2 . . . 1 . . . . . . . . . . . . . . . . . . . Open Door 6 | . . . . . . . . . . . 1 3 1 . . . . . . 1 . . . . Level Access Points 4 | . . . . . . . . . . . . . . . . . . 1 . . 1 1 1 . Branch Access Points 2 | . . . 1 . . . . . . . . . . . . . . . . . . 1 . . Emergency Access Points 4 | . . . . . . 1 . . . 1 . . . . 1 . 1 . . . . . . . Terminal Index 2 | . . . . . 1 . . . 1 . . . . . . . . . . . . . . . Unreport Threat 7 | . . . . . 1 . 2 . . . . 1 . . . . . 2 . . 1 . . . Locate Traps 2 | . . . . . . . . . . . . 1 . . . . . 1 . . . . . . Disarm Traps 1 | . . . . . . . . . . . . . . . . . . 1 . . . . . . Hauler Manifests 1 | . . . . . . . . . . . . . . . . . . 1 . . . . . . Derelict Proto ID Bank 1 | . . 1 . . . . . . . . . . . . . . . . . . . . . . Fabricator Hacks 3 | . . . . . . . 2 . . . . . . . . 1 . . . . . . . . Load Schematic 1 | . . . . . . . 1 . . . . . . . . . . . . . . . . . Build 2 | . . . . . . . 1 . . . . . . . . 1 . . . . . . . . Repair Station Hacks 2 | . . . . . . . 1 . . . 1 . . . . . . . . . . . . . Scan Component 2 | . . . . . . . 1 . . . 1 . . . . . . . . . . . . . Recycling Unit Hacks . | . . . . . . . . . . . . . . . . . . . . . . . . . Scanalyzer 1 | . . . . . . . . . . . 1 . . . . . . . . . . . . . Insert Component 1 | . . . . . . . . . . . 1 . . . . . . . . . . . . . Garrison Access Hacks 8 | . . . 1 . 1 . 1 . 1 . . . . . . 2 . . 1 . . . 1 . Unlock Access 7 | . . . 1 . 1 . 1 . 1 . . . . . . 1 . . 1 . . . 1 . Coupler Status 1 | . . . . . . . . . . . . . . . . 1 . . . . . . . . Unauthorized Hacks 17 | . 4 . 3 . 1 . 2 . 2 . . 2 . . 1 . . 2 . . . . . . Terminals 17 | . 4 . 3 . 1 . 2 . 2 . . 2 . . 1 . . 2 . . . . . . Track 2 | . 1 . 1 . . . . . . . . . . . . . . . . . . . . . Assimilate 1 | . . . . . . . 1 . . . . . . . . . . . . . . . . . Botnet 13 | . 3 . 2 . 1 . 1 . 1 . . 2 . . 1 . . 2 . . . . . . Operators 1 | . . . . . . . . . 1 . . . . . . . . . . . . . . . Fabricators . | . . . . . . . . . . . . . . . . . . . . . . . . . Repair Stations . | . . . . . . . . . . . . . . . . . . . . . . . . . Recycling Units . | . . . . . . . . . . . . . . . . . . . . . . . . . Scanalyzers . | . . . . . . . . . . . . . . . . . . . . . . . . . Garrison Access . | . . . . . . . . . . . . . . . . . . . . . . . . . Data Cores Recovered 3 | . . . . . . . . . . . . 1 . . 1 . . 1 . . . . . . Used . | . . . . . . . . . . . . . . . . . . . . . . . . . Hacking Detections 54 | . 3 . 4 2 2 1 8 . 1 1 3 9 3 . 2 2 1 6 . 1 2 2 1 . Full Trace Events 10 | . . . . 2 1 1 3 . . . . 2 . . . . . 1 . . . . . . Feedback Events 2 | . . . . 1 . . 1 . . . . . . . . . . . . . . . . . Corruption 2 | . . . . 1 . . 1 . . . . . . . . . . . . . . . . . Feedback Blocked . | . . . . . . . . . . . . . . . . . . . . . . . . . Robot Schematics Acquired . | . . . . . . . . . . . . . . . . . . . . . . . . . Robots Built . | . . . . . . . . . . . . . . . . . . . . . . . . . Authchips . | . . . . . . . . . . . . . . . . . . . . . . . . . Time . | . . . . . . . . . . . . . . . . . . . . . . . . . Total Robot Build Rating . | . . . . . . . . . . . . . . . . . . . . . . . . . Part Schematics Acquired 2 | . . . . . . . 1 . . . . . . . . . . 1 . . . . . . Parts Built 3 | . . . . . . . 1 . . . . . . . . 2 . . . . . . . . Authchips . | . . . . . . . . . . . . . . . . . . . . . . . . . Time 164 | . . . . . . . 25 . . . . . . . . 139 . . . . . . . . Total Part Build Rating 19 | . . . . . . . 1 . . . . . . . . 18 . . . . . . . . Parts Repaired . | . . . . . . . . . . . . . . . . . . . . . . . . . Time . | . . . . . . . . . . . . . . . . . . . . . . . . . Parts Recycled . | . . . . . . . . . . . . . . . . . . . . . . . . . Recycled Matter . | . . . . . . . . . . . . . . . . . . . . . . . . . Retrieved Matter . | . . . . . . . . . . . . . . . . . . . . . . . . . Retrieved Components . | . . . . . . . . . . . . . . . . . . . . . . . . . Parts Scanalyzed . | . . . . . . . . . . . . . . . . . . . . . . . . . Part Schematics Acquired . | . . . . . . . . . . . . . . . . . . . . . . . . . Parts Damaged . | . . . . . . . . . . . . . . . . . . . . . . . . . Bothacking | -11 -10 -10 -8 -8 -8 -8 -7 -7 -7 -7 -6 -6 -6 -6 -6 -5 -5 -5 -4 -4 -3 -2 -1 -1 ------------ Run | Yrd Mat Sub Mat Gar Mat Gar Fac Gar Fac Gar Fac Ext Cet Arc Hub Fac Gar Fac Fac Gar Res Res Acc Gar Used RIF Installer 5 | . . . . 1 . 1 . 1 . 1 . . . . . . 1 . . . . . . . Coupler Efficiency 2 | . . . . . . 1 . 1 . . . . . . . . . . . . . . . . Patrol Navigation 1 | . . . . . . . . . . 1 . . . . . . . . . . . . . . Autooverride 1 | . . . . . . . . . . . . . . . . . 1 . . . . . . . Robots Hacked 50 | . . . . . . . 12 1 1 2 6 14 1 2 . . 4 4 . 1 . 2 . . Non-combat 18 | . . . . . . . 9 . . . 2 4 . . . . . 1 . . . 2 . . Combat 32 | . . . . . . . 3 1 1 2 4 10 1 2 . . 4 3 . 1 . . . . Autooverrided 2 | . . . . . . . . . . . . . . . . . . 1 . 1 . . . . Robot Hacks Applied 56 | . . . . . . . 15 1 1 3 6 16 1 2 . . 5 3 . . . 3 . . parse_system 8 | . . . . . . . 2 . . 1 . 1 1 . . . 1 1 . . . 1 . . no_distress 7 | . . . . . . . 5 . . . . 2 . . . . . . . . . . . . find_chute 1 | . . . . . . . 1 . . . . . . . . . . . . . . . . . drop_inventory 1 | . . . . . . . 1 . . . . . . . . . . . . . . . . . find_recycling 1 | . . . . . . . 1 . . . . . . . . . . . . . . . . . ignore_parts 1 | . . . . . . . 1 . . . . . . . . . . . . . . . . . purge_threat 1 | . . . . . . . . . . . . 1 . . . . . . . . . . . . reprogram_traps 1 | . . . . . . . . . . . . 1 . . . . . . . . . . . . map_route 2 | . . . . . . . . . . . 1 . . . . . . . . . . 1 . . mark_security 1 | . . . . . . . 1 . . . . . . . . . . . . . . . . . relay_feed 1 | . . . . . . . . . . . 1 . . . . . . . . . . . . . scatter_targeting 3 | . . . . . . . 1 . . . . 2 . . . . . . . . . . . . disrupt_area 1 | . . . . . . . . . . . 1 . . . . . . . . . . . . . spike_heat 1 | . . . . . . . . . . . . 1 . . . . . . . . . . . . overload_power 1 | . . . . . . . . . . . . 1 . . . . . . . . . . . . amplify_resonance 6 | . . . . . . . 1 . 1 1 2 1 . . . . . . . . . . . . disable_weapons 5 | . . . . . . . . 1 . . . 2 . 1 . . . 1 . . . . . . reboot_system 1 | . . . . . . . . . . . . . . 1 . . . . . . . . . . overwrite_iff 4 | . . . . . . . 1 . . 1 . 1 . . . . 1 . . . . . . . formatsys_low 1 | . . . . . . . . . . . . 1 . . . . . . . . . . . . formatsys_high 8 | . . . . . . . . . . . 1 2 . . . . 3 1 . . . 1 . . Relay Couplers Released 28 | . . . . . . 11 . . 4 . . . . . . . 8 . . 5 . . . . Machine Destruction 21 | . . . . . . 8 . . . . . . . . . . 8 . . 5 . . . . Programmers 7 | . . . . . . 3 . . 4 . . . . . . . . . . . . . . . Attached 16 | . . . . . . . 2 . . 2 2 2 . . . . 2 2 . 4 . . . . Fabnet Peak Effective % . | . . . . . . . . . . . . . . . . . . . . . . . . . Robots Rewired 4 | . . . . . . . . . . . . 4 . . . . . . . . . . . . Allies Hacked . | . . . . . . . . . . . . . . . . . . . . . . . . . Hacks Repelled . | . . . . . . . . . . . . . . . . . . . . . . . . . Allies | -11 -10 -10 -8 -8 -8 -8 -7 -7 -7 -7 -6 -6 -6 -6 -6 -5 -5 -5 -4 -4 -3 -2 -1 -1 -------- Run | Yrd Mat Sub Mat Gar Mat Gar Fac Gar Fac Gar Fac Ext Cet Arc Hub Fac Gar Fac Fac Gar Res Res Acc Gar Total Allies 23 | . . . . . . . 2 . . 1 1 10 . . . . 4 2 . 2 . 1 . . Largest Group 6 | . . . . . . . 1 . . 1 1 6 6 1 . . 1 1 . 1 . 1 . . Highest-Rated Group 284 | . . . . . . . 16 . . 18 12 284 284 28 . . 41 47 . 47 . 26 . . Highest-Rated Ally 159 | . . . . . . . 16 . . 18 12 159 146 28 . . 41 47 . 47 . 26 . . Total Orders 2 | . . . . . . . 2 . . . . . . . . . . . . . . . . . STAY 1 | . . . . . . . 1 . . . . . . . . . . . . . . . . . FOLLOW 1 | . . . . . . . 1 . . . . . . . . . . . . . . . . . Ally Attacks 116 | . . . . . . . 2 . . 1 . 55 22 10 . . 9 14 . 3 . . . . Total Damage 3737 | . . . . . . . 18 . . 36 . 2310 544 189 . . 268 313 . 59 . . . . Kills 20 | . . . . . . . . . . . . 13 2 . . . 2 2 . 1 . . . . Allies Corrupted 1 | . . . . . . . . . . . . . . . . . 1 . . . . . . . Allies Melted . | . . . . . . . . . . . . . . . . . . . . . . . . . Intel | -11 -10 -10 -8 -8 -8 -8 -7 -7 -7 -7 -6 -6 -6 -6 -6 -5 -5 -5 -4 -4 -3 -2 -1 -1 ------- Run | Yrd Mat Sub Mat Gar Mat Gar Fac Gar Fac Gar Fac Ext Cet Arc Hub Fac Gar Fac Fac Gar Res Res Acc Gar Robot Analysis Total 3 | . 2 . . . 1 . . . . . . . . . . . . . . . . . . . Derelict Logs Recovered 2 | . . 2 . . . . . . . . . . . . . . . . . . . . . . Drone Launches . | . . . . . . . . . . . . . . . . . . . . . . . . . Drone Recoveries . | . . . . . . . . . . . . . . . . . . . . . . . . . Exploration | -11 -10 -10 -8 -8 -8 -8 -7 -7 -7 -7 -6 -6 -6 -6 -6 -5 -5 -5 -4 -4 -3 -2 -1 -1 ------------- Run | Yrd Mat Sub Mat Gar Mat Gar Fac Gar Fac Gar Fac Ext Cet Arc Hub Fac Gar Fac Fac Gar Res Res Acc Gar Turns Passed 15235 | 80 932 2540 428 792 115 526 1935 352 638 475 766 939 354 267 488 449 728 1221 18 475 281 222 207 7 Spaces Moved 8307 | 51 441 1414 165 438 54 253 878 127 234 157 327 544 214 139 266 269 306 541 11 185 420 489 371 13 Core 620 | 7 . . . . . . . . . . . . . . . . . . . 64 111 54 371 13 Treads 4383 | 2 384 1414 165 438 54 253 878 127 234 157 83 1 . . . . 100 93 . . . . . . Legs 252 | 42 57 . . . . . . . . . 123 . . . . . . 30 . . . . . . Wheels 2308 | . . . . . . . . . . . 121 543 214 139 266 269 206 418 11 121 . . . . Hover . | . . . . . . . . . . . . . . . . . . . . . . . . . Flight 744 | . . . . . . . . . . . . . . . . . . . . . 309 435 . . Fastest Speed 31 | 50 120 160 160 160 160 160 160 160 160 240 110 110 125 130 130 145 145 120 115 50 31 37 50 50 Average Speed 143 | 115 155 160 160 160 160 160 171 224 208 241 176 124 144 133 138 145 181 161 115 167 37 40 50 50 Slowest Speed 1200 | 160 190 160 160 160 160 160 320 240 240 320 400 400 200 145 145 145 480 400 115 1200 50 50 50 50 Overloaded Moves . | . . . . . . . . . . . . . . . . . . . . . . . . . Propulsion Burnouts . | . . . . . . . . . . . . . . . . . . . . . . . . . Robots Hopped 9 | . . . . . . . . . . . . . . . . . . . . . 1 8 . . Cave-ins Triggered 2 | . . . . . . . . . . . . . . . . . . . . . 2 . . . Exploration Rate (%) 32 | 4 63 83 23 43 6 47 25 30 9 30 11 80 77 89 34 9 42 17 2 30 14 21 14 6 Regions Visited 24 Branch Regions 5 Pre-discovered Areas . | . . . . . . . . . . . . . . . . . . . . . . . . . Known Exits Taken 10 | . . . 1 . 1 . 1 . 1 . . . . . . 1 . 1 1 . 1 1 1 . Unknown Exits Taken 8 | 1 1 1 . . . . . . . . 1 1 1 1 1 . . . . . . . . . Scrap Searched 6 | . . 6 . . . . . . . . . . . . . . . . . . . . . . Spaces Dug 84 | . 2 . . . . . . . . . . . . . . 2 58 3 . . 19 . . . Terrain Destroyed 731 | . 2 17 32 24 . . 40 11 26 2 . 5 77 4 170 23 124 93 . 62 19 . . . Melee . | . . . . . . . . . . . . . . . . . . . . . . . . . Projectile 127 | . 2 8 9 . . . 11 . 6 1 . 5 . 4 15 6 2 32 . 7 19 . . . AOE 602 | . . 9 23 24 . . 29 11 20 . . . 77 . 155 17 122 61 . 54 . . . . Terrain Rammed . | . . . . . . . . . . . . . . . . . . . . . . . . . Walls Destroyed . | . . . . . . . . . . . . . . . . . . . . . . . . . Machines Disabled . | . . . . . . . . . . . . . . . . . . . . . . . . . Actions | -11 -10 -10 -8 -8 -8 -8 -7 -7 -7 -7 -6 -6 -6 -6 -6 -5 -5 -5 -4 -4 -3 -2 -1 -1 --------- Run | Yrd Mat Sub Mat Gar Mat Gar Fac Gar Fac Gar Fac Ext Cet Arc Hub Fac Gar Fac Fac Gar Res Res Acc Gar Total 10243 | 66 568 1612 264 486 69 322 1138 161 303 209 424 698 244 181 324 301 415 731 16 281 522 504 391 13 Wait 448 | 2 38 91 34 6 3 2 109 12 12 . 8 17 . 11 14 . 9 30 . 7 35 5 3 . Move 8268 | 50 440 1413 164 437 53 252 878 126 233 156 326 543 213 138 265 269 305 540 11 183 416 473 371 13 Hop 8 | . . . . . . . . . . . . . . . . . . . . . 1 7 . . Pick Up 191 | 4 11 5 11 6 2 14 14 . 9 9 16 10 3 3 9 7 14 28 2 4 8 2 . . Fast Attach 84 | 8 . 3 3 2 . 3 10 . 3 6 3 3 3 1 1 1 2 11 1 3 10 4 3 . Attach 138 | . . 4 7 2 4 3 5 . 6 11 11 3 4 6 7 2 11 23 1 14 7 3 4 . Detach 31 | 1 . 2 1 . 1 . 2 . . 1 1 2 6 . . . 1 4 . . 4 3 2 . Swap 96 | . 9 17 2 1 . 5 12 6 3 1 9 8 2 1 . 5 9 6 . . . . . . Drop 115 | . 10 6 6 7 . 15 17 . 1 . 6 8 5 . 2 3 5 11 1 3 6 3 . . Fire 742 | 1 57 71 36 25 6 28 86 17 35 23 44 66 8 21 25 14 46 77 . 34 19 3 . . Melee . | . . . . . . . . . . . . . . . . . . . . . . . . . Ram 8 | . . . . . . . . . . . . . . . . . . . . . . . 8 . Kick . | . . . . . . . . . . . . . . . . . . . . . . . . . Crush 10 | . 3 . . . . . 5 . 1 . . . . . 1 . . . . . . . . . Escape Stasis 66 | . . . . . . . . . . 2 . 4 . . . . 13 . . 31 16 . . . Rewire 38 | . . . . . . . . . . . . 34 . . . . . 1 . 2 . 1 . . Trap . | . . . . . . . . . . . . . . . . . . . . . . . . . Miscellaneous . | . . . . . . . . . . . . . . . . . . . . . . . . . Route ------- -11/Scrapyard -10/Materials (discovered 4 exits: [*Mat] / [*Min x2] / *Sub) -10/Subcaves (discovered 2 exits: *Mat x2) -8/Materials -8/Garrison -8/Materials -8/Garrison -7/Factory (discovered 7 exits: *Fac x4 / Low x2 / Gar) -7/Garrison -7/Factory (discovered 2 exits: *Low / Gar) -7/Garrison -6/Factory -6/Extension (discovered 2 exits: *Fac / *Cet) -6/Cetus -6/Archives (discovered 3 exits: *Fac / *Hub x2) -6/Hub_04(d) -5/Factory -5/Garrison (discovered 2 exits: *Fac x2) -5/Factory (discovered 4 exits: *Fac x4) -4/Factory -4/Garrison -3/Research (discovered 3 exits: *Res x3) -2/Research (discovered 5 exits: *Acc x3 / Tes x2) -1/Access (discovered 2 exits: Sur / Gar) -1/Garrison History --------- Turn | Location | Event 14 | -11/Scrapyard | Discovered new exit (range 15) 81 | -11/Scrapyard | Entered Materials 113 | -10/Materials | Discovered new exit (range 13) 308 | -10/Materials | Build established: Mutant 357 | -10/Materials | Discovered new exit (range 5) 470 | -10/Materials | Discovered new exit (range 14) 1007 | -10/Materials | Discovered new exit (range 3) 1013 | -10/Materials | Entered Subcaves 1041 | -10/Subcaves | Learned Materials stockpile data 1071 | -10/Subcaves | A swath of the cavern ceiling suddenly collapsed 1205 | -10/Subcaves | Ambushed by Subdwellers from Twisted Machinery 1717 | -10/Subcaves | Core integrity fell below 50% 1744 | -10/Subcaves | Discovered new exit (range 10) 1873 | -10/Subcaves | Visited 4L-MR0's lab 1898 | -10/Subcaves | Found Powered Cannon 1899 | -10/Subcaves | Attached Powered Cannon, gained temporary slot: Power 1996 | -10/Subcaves | Disturbed a concealed Subdweller 2107 | -10/Subcaves | Visited Clippyterm 2112 | -10/Subcaves | Learned 40 Factory zone layouts 2112 | -10/Subcaves | Learned Factory garrison access intel 2163 | -10/Subcaves | Shifting Twisted Machinery released Flamer 2166 | -10/Subcaves | Shifting Twisted Machinery released Sub. Power Source 2403 | -10/Subcaves | Discovered new exit (range 11) 2412 | -10/Subcaves | Shifting Twisted Machinery released Mak. Axe 2441 | -10/Subcaves | Shifting Twisted Machinery released Spk. Treads 2486 | -10/Subcaves | Shifting Twisted Machinery released Riot Gun 2486 | -10/Subcaves | Shifting Twisted Machinery released Sub. Power Source 2524 | -10/Subcaves | A swath of the cavern ceiling suddenly collapsed 2739 | -10/Subcaves | Learned 4 Materials zone layouts 3028 | -10/Subcaves | Core integrity fell below 20% 3553 | -10/Subcaves | Entered Materials 3553 | -8/Materials | Evolved 4 slots: Propulsion x1, Utility x1, Weapon x2 3818 | -8/Materials | Garrison activated, responded to threat 3976 | -8/Materials | Identified exit to Garrison 3981 | -8/Materials | Entered Garrison 4077 | -8/Garrison | Triggered checkpoint 4093 | -8/Garrison | Triggered checkpoint 4111 | -8/Garrison | Build established: Scavenger-Tank 4135 | -8/Garrison | Destroyed 10 combat bots 4246 | -8/Garrison | Discovered new exit (range 9) 4335 | -8/Garrison | Triggered checkpoint 4541 | -8/Garrison | Triggered checkpoint 4597 | -8/Garrison | Installed Relay Interface Framework 4773 | -8/Garrison | Entered Materials 4859 | -8/Materials | Identified exit to Garrison 4888 | -8/Materials | Entered Garrison 4903 | -8/Garrison | Expanded RIF knowledge: Coupler Efficiency 4986 | -8/Garrison | Triggered checkpoint 5006 | -8/Garrison | Garrison Relay disabled 5228 | -8/Garrison | Triggered checkpoint 5244 | -8/Garrison | Destroyed 7 combat bots 5346 | -8/Garrison | Garrison Relay disabled 5399 | -8/Garrison | Discovered new exit (range 10) 5414 | -8/Garrison | Entered Factory 5414 | -7/Factory | Evolved 2 slots: Utility x2 5415 | -7/Factory | Identified exit to Factory 5415 | -7/Factory | Identified exit to Lower Caves 5416 | -7/Factory | Loaded intel: 4 garrison access locations 5515 | -7/Factory | Discovered exit to Factory (range 4) 5846 | -7/Factory | Build established: Bothacker-Tank 7029 | -7/Factory | Fabricated Hcp. Storage Unit? 7349 | -7/Factory | Identified exit to Garrison 7349 | -7/Factory | Entered Garrison 7395 | -7/Garrison | Expanded RIF knowledge: Coupler Efficiency 7507 | -7/Garrison | Destroyed 8 combat bots 7624 | -7/Garrison | Discovered new exit (range 10) 7701 | -7/Garrison | Entered Factory 7939 | -7/Factory | Build established: Bothacker-Gunner 7978 | -7/Factory | Discovered exit to Lower Caves (range 8) 8094 | -7/Factory | Garrison activated, responded to threat 8175 | -7/Factory | Lost 3 parts (1n1u1w) 8332 | -7/Factory | Identified exit to Garrison 8339 | -7/Factory | Entered Garrison 8364 | -7/Garrison | Build established: Bothacker-Tank 8434 | -7/Garrison | Lost 5 parts (2n1u2w) 8556 | -7/Garrison | Expanded RIF knowledge: Patrol Navigation 8623 | -7/Garrison | Lost 6 parts (1n2u3w) 8661 | -7/Garrison | Triggered checkpoint 8669 | -7/Garrison | Core integrity fell below 50% 8800 | -7/Garrison | Discovered exit to Factory (range 3) 8814 | -7/Garrison | Entered Factory 8814 | -6/Factory | Evolved 2 slots: Utility x2 8984 | -6/Factory | Lost 4 parts (1p1n1u1w) 9122 | -6/Factory | Lost 3 parts (1p1n1u) 9514 | -6/Factory | First assault squad dispatched 9575 | -6/Factory | Discovered new exit (range 6) 9580 | -6/Factory | Entered Extension 9648 | -6/Extension | Rescued A7 9821 | -6/Extension | Rescued a captive Derelict 9861 | -6/Extension | Spotted B-75 Beast 9870 | -6/Extension | Spotted B-75 Beast 9874 | -6/Extension | Assimilated Beast 5a with formatsys_high 9914 | -6/Extension | Allies destroyed B-75 Beast 10445 | -6/Extension | Rescued a captive Derelict 10488 | -6/Extension | Discovered new exit (range 10) 10489 | -6/Extension | Discovered new exit (range 6) 10519 | -6/Extension | Entered Cetus 10519 | -6/Cetus | Accompanied by 6 allies (A7) 10524 | -6/Cetus | Build established: Scavenger-Tank 10524 | -6/Cetus | Acquired a Cetus Manufacturing Module code from A7 10536 | -6/Cetus | Spotted Cetus Guard 10536 | -6/Cetus | Spotted Cetus Guard 10537 | -6/Cetus | Spotted Cetus Guard 10538 | -6/Cetus | Spotted Cetus Guard 10546 | -6/Cetus | Destroyed Cetus Guard 10562 | -6/Cetus | Allies destroyed Cetus Guard 10563 | -6/Cetus | Extracted ID and sensor layout for unrecognized location from A7's data core 10568 | -6/Cetus | Allies destroyed Cetus Guard 10568 | -6/Cetus | Destroyed Cetus Guard 10593 | -6/Cetus | Lost 5 allies 10596 | -6/Cetus | Lost 4 parts (2n2u) 10662 | -6/Cetus | Cetus Manufacturing Module disabled 10719 | -6/Cetus | Failed to start Cetus Manufacturing Module 10816 | -6/Cetus | Discovered new exit (range 15) 10873 | -6/Cetus | Entered Archives 10873 | -6/Archives | Accompanied by 1 ally 10962 | -6/Archives | Unable to access archive contents 10966 | -6/Archives | Discovered new exit (range 15) 11007 | -6/Archives | Unable to access archive contents 11007 | -6/Archives | Unable to access archive contents 11009 | -6/Archives | Discovered new exit (range 15) 11021 | -6/Archives | Discovered new exit (range 15) 11140 | -6/Archives | Entered Hub_04(d) 11162 | -6/Hub_04(d) | Garrison activated, responded to threat 11223 | -6/Hub_04(d) | Lost 3 parts (1u2w) 11397 | -6/Hub_04(d) | Network Hub disabled 11598 | -6/Hub_04(d) | Discovered new exit (range 2) 11628 | -6/Hub_04(d) | Entered Factory 11628 | -5/Factory | Evolved 2 slots: Utility x2 11961 | -5/Factory | Garrison activated, responded to threat 12028 | -5/Factory | Fabricated Lgt. Quantum Reactor (x2) 12077 | -5/Factory | Identified exit to Garrison 12077 | -5/Factory | Entered Garrison 12133 | -5/Garrison | Spotted B-75 Beast 12171 | -5/Garrison | Triggered checkpoint 12184 | -5/Garrison | Garrison Relay disabled 12190 | -5/Garrison | Build established: Hacker-Tank 12245 | -5/Garrison | Triggered checkpoint 12315 | -5/Garrison | Discovered new exit (range 10) 12335 | -5/Garrison | Triggered checkpoint 12362 | -5/Garrison | Garrison Relay disabled 12488 | -5/Garrison | Triggered checkpoint 12496 | -5/Garrison | Destroyed B-75 Beast 12550 | -5/Garrison | Triggered checkpoint 12596 | -5/Garrison | Destroyed 7 combat bots 12665 | -5/Garrison | Build established: Botlord-Tank 12701 | -5/Garrison | Discovered new exit (range 10) 12753 | -5/Garrison | Expanded RIF knowledge: Autooverride 12805 | -5/Garrison | Entered Factory 13080 | -5/Factory | Lost 4 parts (1n1u2w) 13181 | -5/Factory | Core integrity fell below 50% 13222 | -5/Factory | Lost 3 parts (1p1u1w) 13407 | -5/Factory | Lost 3 parts (1u2w) 13609 | -5/Factory | Lost 5 parts (1p1u3w) 13750 | -5/Factory | Identified exit to Factory 13750 | -5/Factory | Central database locked down 13831 | -5/Factory | Lost 6 parts (1p1n2u2w) 13873 | -5/Factory | System corruption reached 10% 13888 | -5/Factory | Core integrity fell below 20% 13918 | -5/Factory | Lost 3 parts (1n1u1w) 14026 | -5/Factory | Entered another Factory area 14026 | -4/Factory | Evolved 2 slots: Propulsion x1, Utility x1 14044 | -4/Factory | Identified exit to Garrison 14044 | -4/Factory | Entered Garrison 14054 | -4/Garrison | Triggered checkpoint 14116 | -4/Garrison | Spotted B-86 Titan 14164 | -4/Garrison | Triggered checkpoint 14205 | -4/Garrison | Destroyed B-86 Titan 14236 | -4/Garrison | Lost 6 parts (1p1n4u) 14244 | -4/Garrison | Rescued a captive Derelict 14355 | -4/Garrison | Lost 15 parts (1p2n8u4w) 14482 | -4/Garrison | Triggered checkpoint 14510 | -4/Garrison | Lost 3 parts (1p2w) 14513 | -4/Garrison | Discovered new exit (range 12) 14519 | -4/Garrison | Entered Research 14519 | -3/Research | Evolved 2 slots: Utility x2 14602 | -3/Research | Identified exit to Research 14642 | -3/Research | Found Quantum Capacitor 14771 | -3/Research | Crushed by falling debris 14780 | -3/Research | Crushed by falling debris 14780 | -3/Research | System corruption reached 10% 14799 | -3/Research | Spotted B-86 Titan 14800 | -3/Research | Entered another Research area 14800 | -2/Research | Evolved 2 slots: Propulsion x2 14807 | -2/Research | Spotted B-90 Cyclops 14811 | -2/Research | Lost 7 parts (1p3n3u) 14867 | -2/Research | Identified exit to Testing 14943 | -2/Research | Spotted B-90 Cyclops 14973 | -2/Research | Identified exit to Access 15022 | -2/Research | Entered Access 15022 | -1/Access | Evolved 2 slots: Power x1, Utility x1 15026 | -1/Access | Lost 3 parts (1n1u1w) 15112 | -1/Access | Identified exit to Surface 15145 | -1/Access | Spotted B-99 Colossus 15197 | -1/Access | Lost 7 parts (2p2n3u) 15208 | -1/Access | Energy Cycler disabled 15213 | -1/Access | Core integrity fell below 50% 15224 | -1/Access | Core integrity fell below 20% 15229 | -1/Access | Identified exit to Garrison 15229 | -1/Access | Entered Garrison 15236 | -1/Garrison | Destroyed by S-43 Plague with Heavy Machine Gun Last Messages --------------- 15212_ Slug penetrates Wall. 15213_ B-99 Colossus activates siege mode. 15217_ C-30 ARC bursts open, deploying its payload. 15217_ S-43 Plague unfolds itself. 15218_ Detecting nearby Garrison Access. 15222_ Slammed into S-43 Plague. 15222_ S-43 Plague destroyed. 15223_ Slammed into S-43 Plague. 15223_ >> Machine Analyzer network decryption results: 15223_ Garrison Access x3 15223_ Knocked back. 15224_ Acquired 105 matter. 15229_ Connecting with Garrison Access... >>Unlock Access door unlocked. 15229_ EXIT=UNLOCKED: GARRISON [Achievement: Knowing Is Half The Battle] LOCATION=GARRISON GOAL=ESCAPE 15230_ System corrupted: Substantial component data lost. Map ----- +----------------------------------------------------+ | ?????????????????????????????????????????????????? | | ?????????????????????????????????????????????????? | | ?????????????????????????????????????????????????? | | ?????????????????????????????????????????????????? | | ?????????????????????????????????????????????????? | | ?????????????????????????????????????????????????? | | ?????????????????????????????????????????????????? | | ?????????????????????????????????????????????????? | | ?????????????????????????????????????????????????? | | ?????????????????????????????????????????????????? | | ?????????????????????????s ?????????????????????? | | ????????????????????????? #????????????????????? | | ????????????????????????? #????????????????????? | | ????????????????????????? #????????????????????? | | ????????????????????????? s#????????????????????? | | ????????????????????????? ????????????????????? | | ?????????????????????????ssg ????????????????????? | | ????????????????????????#sgs#????????????????????? | | ????????????????????????# gg#????????????????????? | | ????????????????????????# #????????????????????? | | ????????????????????????# #????????????????????? | | ????????????????????????# #????????????????????? | | ????????????????????????# #????????????????????? | | ????????????????????????# #????????????????????? | | ????????????????????????# #????????????????????? | | ????????????????????????#@ #????????????????????? | | ????????????????????????# #????????????????????? | | ????????????????????????# #????????????????????? | | ????????????????????????# #????????????????????? | | ????????????????????????# #????????????????????? | | ????????????????????????# #????????????????????? | | ????????????????????????# #????????????????????? | | ????????????????????????# #????????????????????? | | ????????????????????????# #????????????????????? | | ???????????????????#????# #????????????????????? | | ??????????????????## ###Y #????????????????????? | | ??????????????????# ###??????????????????? | | ??????????????????# ## #??????????????????? | | ??????????????????# ??# #??????????????????? | | ??????????????????" ???# #??????????????????? | | ??????????????????" ????#######??????????????????? | | ??????????????????#??????????????????????????????? | | ?????????????????????????????????????????????????? | | ?????????????????????????????????????????????????? | | ?????????????????????????????????????????????????? | | ?????????????????????????????????????????????????? | | ?????????????????????????????????????????????????? | | ?????????????????????????????????????????????????? | | ?????????????????????????????????????????????????? | | ?????????????????????????????????????????????????? | +----------------------------------------------------+ Best States ------------- Heat Dissipation 98 Energy Generation 45 Energy Capacity 600 Matter Stores 300 Matter Capacity 300 Sight Range 16 Robot Scan Range 16 Terrain Scan Range 20 Terrain Scan Density 10 Additional Mass Support 20 Armor Coverage 1200 Resistance: TH 20 Evasion (%) 72 Targeting Accuracy 6 Melee Accuracy 8 Core Analysis 6 Recoil Reduction 3 Particle Charging 20 Offensive Hacking 34 Relay Coupler Types 5 Relay Coupler Value 176 Authchip Count 3 Item Schematics ----------------- Hcp. Storage Unit | -7/Factory | Hacked Remote Datajack | -5/Factory | Hacked Robot Schematics ------------------ None Fabricated ------------ Hcp. Storage Unit | x1 | -7/Factory Lgt. Quantum Reactor | x2 | -5/Factory | Preloaded Alien Tech Used ----------------- None Achievements -------------- Infiltrator Knowing Is Half The Battle Project G-00 Challenges ------------ None Game ------ Seed TrapControlScrap Manual? 0 Play Time 04:19:02 Cumulative 98.5 hours Start 2024.08.08 @ 15:55:54 End 2024.08.12 @ 06:10:45 Sessions 17 Manual Loads 0 Difficulty Rogue Special Mode None Game No. 30 Rogue 30 Adventurer 0 Explorer 0 Win Type - Total 1 Types 1/0/0/0/0/0/0/0/0 Lore% 27 Gallery% 51 Achievement% 43 Wizard Run 0 Options --------- Layout 0 ASCII 0 Keyboard 1 Movement Arrows Keybinds 0 Fullscreen 2 Font 36/Terminus++ Map View 76x50 Zoom Use 0% Tactical HUD 1 Map Filters NONE Filters NONE Steam 1 RUN: b9e127fd-756a-4d30-8f47-7fb695968b01